[Event "Sabato rapido!"]
[Site "Chess.com"]
[Date "2020.05.02"]
[Round "1"]
[White "crippo"]
[Black "moha1812med"]
[Result "1-0"]
[WhiteElo "1498"]
[BlackElo "1015"]
[TimeControl "720+3"]
[EndTime "6:05:47 PDT"]
[Termination "crippo ha vinto per scaccomatto"]

1. e4 {[%clk 0:12:00.7]} 1... e5 {[%clk 0:12:00]} 2. Nf3 {[%clk 0:12:01.8]} 2...
Nc6 {[%clk 0:12:00.1]} 3. Bc4 {[%clk 0:12:02.8]} 3... Nf6 {[%clk 0:11:57.8]} 4.
d3 {[%clk 0:12:04.7]} 4... Bc5 {[%clk 0:11:56.2]} 5. Nc3 {[%clk 0:12:05.5]} 5...
O-O {[%clk 0:11:54.8]} 6. Bg5 {[%clk 0:12:04.4]} 6... h6 {[%clk 0:11:52.6]} 7.
Bh4 {[%clk 0:12:04.5]} 7... d6 {[%clk 0:11:52]} 8. Nd5 {[%clk 0:12:03.4]} 8...
g5 {[%clk 0:11:03.6]} 9. Bg3 {[%clk 0:12:02]} 9... a6 {[%clk 0:11:02.2]} 10. Qd2
{[%clk 0:11:56.9]} 10... Nxd5 {[%clk 0:10:50]} 11. Bxd5 {[%clk 0:11:56.4]} 11...
g4 {[%clk 0:09:46.2]} 12. Qxh6 {[%clk 0:11:55.7]} 12... gxf3 {[%clk 0:09:37.4]}
13. gxf3 {[%clk 0:11:53.7]} 13... Ne7 {[%clk 0:09:17.6]} 14. Bh4 {[%clk
0:11:54.1]} 14... c6 {[%clk 0:08:56.8]} 15. Rg1+ {[%clk 0:11:51.9]} 15... Ng6
{[%clk 0:08:34.6]} 16. Rxg6# {[%clk 0:11:42.7]} 1-0

[Event "Sabato rapido!"]
[Site "Chess.com"]
[Date "2020.05.02"]
[Round "1"]
[White "sirmale49"]
[Black "Ollarov"]
[Result "0-1"]
[WhiteElo "1389"]
[BlackElo "1974"]
[TimeControl "720+3"]
[EndTime "6:11:05 PDT"]
[Termination "Ollarov ha vinto per scaccomatto"]

1. e4 {[%clk 0:11:52.4]} 1... c5 {[%clk 0:12:01.2]} 2. f4 {[%clk 0:11:53.5]}
2... d5 {[%clk 0:12:01.9]} 3. e5 {[%clk 0:11:53.4]} 3... Nc6 {[%clk 0:12:02.9]}
4. Nf3 {[%clk 0:11:54.7]} 4... Bg4 {[%clk 0:12:04.2]} 5. Bb5 {[%clk 0:11:55]}
5... e6 {[%clk 0:12:02]} 6. O-O {[%clk 0:11:55.8]} 6... Nh6 {[%clk 0:12:02.1]}
7. h3 {[%clk 0:11:53.9]} 7... Bf5 {[%clk 0:12:03.2]} 8. g4 {[%clk 0:11:47.7]}
8... Nxg4 {[%clk 0:11:33.7]} 9. Ng5 {[%clk 0:11:24.6]} 9... Nh6 {[%clk
0:11:24.7]} 10. Qh5 {[%clk 0:11:01.2]} 10... Be7 {[%clk 0:11:23.8]} 11. h4
{[%clk 0:10:29.5]} 11... O-O {[%clk 0:11:24.4]} 12. d3 {[%clk 0:10:07]} 12...
Qb6 {[%clk 0:11:24.8]} 13. Nc3 {[%clk 0:09:57.7]} 13... a6 {[%clk 0:11:24.9]}
14. Bxc6 {[%clk 0:09:56.3]} 14... bxc6 {[%clk 0:11:26.6]} 15. Re1 {[%clk
0:09:40.5]} 15... c4+ {[%clk 0:11:26.6]} 16. Be3 {[%clk 0:09:30.6]} 16... d4
{[%clk 0:11:27.7]} 17. Nce4 {[%clk 0:07:59.1]} 17... dxe3 {[%clk 0:11:19.7]} 18.
Nf6+ {[%clk 0:07:52.2]} 18... Bxf6 {[%clk 0:11:08]} 19. exf6 {[%clk 0:07:52.1]}
19... e2+ {[%clk 0:11:08.8]} 20. Kh1 {[%clk 0:07:49.1]} 20... Qf2 {[%clk
0:11:01.1]} 21. fxg7 {[%clk 0:07:34.2]} 21... Kxg7 {[%clk 0:10:56.8]} 22. Rg1
{[%clk 0:07:15.4]} 22... Bg6 {[%clk 0:10:06]} 23. Ne4 {[%clk 0:06:39.4]} 23...
Qe3 {[%clk 0:09:55.4]} 24. Qe5+ {[%clk 0:06:38.8]} 24... f6 {[%clk 0:09:51.6]}
25. Qc7+ {[%clk 0:06:35.2]} 25... Rf7 {[%clk 0:09:48.4]} 26. Qxc6 {[%clk
0:06:29.2]} 26... Qh3# {[%clk 0:09:46.2]} 0-1

[Event "Sabato rapido!"]
[Site "Chess.com"]
[Date "2020.05.02"]
[Round "1"]
[White "fisherpez"]
[Black "caramante"]
[Result "1-0"]
[WhiteElo "1593"]
[BlackElo "1493"]
[TimeControl "720+3"]
[EndTime "6:11:44 PDT"]
[Termination "fisherpez ha vinto per scaccomatto"]

1. e3 {[%clk 0:12:01.5]} 1... c5 {[%clk 0:10:29.2]} 2. b3 {[%clk 0:11:55.1]}
2... d6 {[%clk 0:10:31]} 3. Bb5+ {[%clk 0:11:55.3]} 3... Bd7 {[%clk 0:10:31.8]}
4. Qe2 {[%clk 0:11:56.7]} 4... e6 {[%clk 0:10:32.3]} 5. Bb2 {[%clk 0:11:53]}
5... Nf6 {[%clk 0:10:33.8]} 6. Nf3 {[%clk 0:11:42.3]} 6... Be7 {[%clk
0:10:35.5]} 7. Bxd7+ {[%clk 0:11:42.9]} 7... Nbxd7 {[%clk 0:10:36.3]} 8. Nc3
{[%clk 0:11:43.5]} 8... a6 {[%clk 0:10:35.9]} 9. O-O {[%clk 0:11:38.4]} 9... Qc7
{[%clk 0:10:37.4]} 10. h3 {[%clk 0:11:37.5]} 10... O-O {[%clk 0:10:39]} 11. Nh2
{[%clk 0:11:38.9]} 11... Rad8 {[%clk 0:10:34.6]} 12. Rae1 {[%clk 0:11:37.7]}
12... Rfe8 {[%clk 0:10:34.4]} 13. a3 {[%clk 0:11:38.6]} 13... b5 {[%clk
0:10:35.5]} 14. Nd1 {[%clk 0:11:38.1]} 14... Nb6 {[%clk 0:10:26.5]} 15. Ng4
{[%clk 0:11:37.1]} 15... e5 {[%clk 0:10:20.8]} 16. d3 {[%clk 0:11:34.1]} 16...
Nxg4 {[%clk 0:10:17.2]} 17. Qxg4 {[%clk 0:11:35.2]} 17... Bf6 {[%clk 0:10:18.3]}
18. f4 {[%clk 0:11:18]} 18... Re7 {[%clk 0:10:05.6]} 19. Nf2 {[%clk 0:10:33.4]}
19... d5 {[%clk 0:10:02.6]} 20. Nh1 {[%clk 0:10:27]} 20... d4 {[%clk 0:09:59.3]}
21. e4 {[%clk 0:10:20.9]} 21... exf4 {[%clk 0:09:56.5]} 22. Rxf4 {[%clk
0:10:09.5]} 22... Be5 {[%clk 0:09:57.9]} 23. Rf3 {[%clk 0:10:04.5]} 23... Rf8
{[%clk 0:09:53.6]} 24. Bc1 {[%clk 0:10:00.2]} 24... f5 {[%clk 0:09:46.7]} 25.
Qg5 {[%clk 0:09:32.5]} 25... fxe4 {[%clk 0:09:30.6]} 26. Rxf8+ {[%clk
0:09:28.2]} 26... Kxf8 {[%clk 0:09:30.7]} 27. Rxe4 {[%clk 0:09:10.1]} 27... Bf6
{[%clk 0:09:28.3]} 28. Qf5 {[%clk 0:08:41.7]} 28... Kg8 {[%clk 0:09:23.6]} 29.
Bf4 {[%clk 0:08:27.7]} 29... Qd7 {[%clk 0:09:19.4]} 30. Qxd7 {[%clk 0:08:25.1]}
30... Rxd7 {[%clk 0:09:18.4]} 31. Re8+ {[%clk 0:08:26.8]} 31... Kf7 {[%clk
0:09:18.9]} 32. Rb8 {[%clk 0:08:18.8]} 32... Nd5 {[%clk 0:09:18.6]} 33. Bd2
{[%clk 0:08:11.4]} 33... Ne3 {[%clk 0:09:14.6]} 34. Bxe3 {[%clk 0:08:05.2]}
34... dxe3 {[%clk 0:09:14.9]} 35. Ng3 {[%clk 0:08:07.3]} 35... Bd4 {[%clk
0:09:13.1]} 36. Kf1 {[%clk 0:08:05.1]} 36... Kg6 {[%clk 0:09:11.5]} 37. Rb6+
{[%clk 0:08:05.1]} 37... Kg5 {[%clk 0:09:08.9]} 38. Ne4+ {[%clk 0:08:04]} 38...
Kh4 {[%clk 0:09:07.3]} 39. Ke2 {[%clk 0:08:05.3]} 39... Rf7 {[%clk 0:09:01.7]}
40. Rxa6 {[%clk 0:08:05.8]} 40... g5 {[%clk 0:08:53.3]} 41. Rh6# {[%clk
0:08:05.9]} 1-0

[Event "Sabato rapido!"]
[Site "Chess.com"]
[Date "2020.05.02"]
[Round "1"]
[White "SanSecondoPR"]
[Black "donaldnecesito"]
[Result "1-0"]
[WhiteElo "1296"]
[BlackElo "1595"]
[TimeControl "720+3"]
[EndTime "6:16:28 PDT"]
[Termination "SanSecondoPR ha vinto per abbandono"]

1. e4 {[%clk 0:12:01.8]} 1... c5 {[%clk 0:12:00.2]} 2. d4 {[%clk 0:12:01.1]}
2... cxd4 {[%clk 0:12:01.7]} 3. Nf3 {[%clk 0:12:01.1]} 3... e6 {[%clk
0:11:59.6]} 4. Nxd4 {[%clk 0:12:01.2]} 4... Bc5 {[%clk 0:11:58.2]} 5. Nc3 {[%clk
0:11:52.4]} 5... Nc6 {[%clk 0:11:50.2]} 6. Nb3 {[%clk 0:11:49.7]} 6... Bb6
{[%clk 0:11:33.2]} 7. Bd3 {[%clk 0:11:37.1]} 7... d6 {[%clk 0:11:27.3]} 8. O-O
{[%clk 0:11:33.8]} 8... Nf6 {[%clk 0:11:27.9]} 9. Kh1 {[%clk 0:11:33.9]} 9...
O-O {[%clk 0:11:25.1]} 10. Na4 {[%clk 0:11:19.5]} 10... Bc7 {[%clk 0:11:21.1]}
11. Qe1 {[%clk 0:10:50.6]} 11... e5 {[%clk 0:11:05.5]} 12. Bg5 {[%clk
0:10:35.4]} 12... h6 {[%clk 0:11:05.2]} 13. Bh4 {[%clk 0:10:35.5]} 13... Be6
{[%clk 0:10:48.7]} 14. Nc3 {[%clk 0:10:29.5]} 14... Qe7 {[%clk 0:10:42.7]} 15.
a3 {[%clk 0:10:25.8]} 15... g5 {[%clk 0:10:43.7]} 16. Bg3 {[%clk 0:10:23.8]}
16... Nh5 {[%clk 0:10:32.7]} 17. f3 {[%clk 0:10:16.7]} 17... Nf4 {[%clk
0:10:33.7]} 18. Nd5 {[%clk 0:09:55.7]} 18... Bxd5 {[%clk 0:10:34.1]} 19. exd5
{[%clk 0:09:54.2]} 19... Nd8 {[%clk 0:10:23.1]} 20. Be4 {[%clk 0:09:35.6]} 20...
f5 {[%clk 0:10:21.6]} 21. Bxf4 {[%clk 0:09:31.5]} 21... gxf4 {[%clk 0:10:11.3]}
22. Bd3 {[%clk 0:09:28.1]} 22... Qg5 {[%clk 0:09:54]} 23. Nd2 {[%clk 0:09:16.4]}
23... Bb6 {[%clk 0:09:53.7]} 24. Nc4 {[%clk 0:09:06.5]} 24... Bc7 {[%clk
0:09:36.8]} 25. Qb4 {[%clk 0:08:39.6]} 25... Qg6 {[%clk 0:09:12.6]} 26. g4
{[%clk 0:08:32.9]} 26... e4 {[%clk 0:09:04.4]} 27. gxf5 {[%clk 0:08:30.3]} 27...
Qxf5 {[%clk 0:07:41.3]} 28. Bxe4 {[%clk 0:08:26.8]} 28... Qd7 {[%clk 0:07:30]}
29. Rg1+ {[%clk 0:08:19.8]} 29... Kf7 {[%clk 0:06:57.4]} 30. Qc3 {[%clk
0:07:51.5]} 30... Ke8 {[%clk 0:06:47.7]} 31. Bg6+ {[%clk 0:07:46.8]} 31... Nf7
{[%clk 0:06:48.8]} 32. Qg7 {[%clk 0:07:23.4]} 32... Bd8 {[%clk 0:05:52.4]} 33.
Rae1+ {[%clk 0:07:15.8]} 33... Be7 {[%clk 0:05:54.5]} 34. Re6 {[%clk 0:06:53.2]}
34... Kd8 {[%clk 0:05:47.8]} 35. Bxf7 {[%clk 0:06:47.1]} 35... Kc7 {[%clk
0:05:40.9]} 36. Rge1 {[%clk 0:06:34.3]} 36... b5 {[%clk 0:05:33]} 37. Rxe7
{[%clk 0:06:29.3]} 1-0

[Event "Sabato rapido!"]
[Site "Chess.com"]
[Date "2020.05.02"]
[Round "1"]
[White "ottovolante"]
[Black "sergiodone"]
[Result "0-1"]
[WhiteElo "1016"]
[BlackElo "1490"]
[TimeControl "720+3"]
[EndTime "6:17:27 PDT"]
[Termination "sergiodone ha vinto per scaccomatto"]

1. Nf3 {[%clk 0:11:59.1]} 1... c5 {[%clk 0:11:55.3]} 2. e4 {[%clk 0:11:57.8]}
2... d6 {[%clk 0:11:55.8]} 3. Bb5+ {[%clk 0:11:52.3]} 3... Bd7 {[%clk
0:11:49.9]} 4. Bxd7+ {[%clk 0:11:53.1]} 4... Nxd7 {[%clk 0:11:50.5]} 5. c3
{[%clk 0:11:54.2]} 5... Ngf6 {[%clk 0:11:49.5]} 6. Qb3 {[%clk 0:11:15.1]} 6...
Qc7 {[%clk 0:11:43.2]} 7. d3 {[%clk 0:11:14.5]} 7... g6 {[%clk 0:11:40.3]} 8.
Ng5 {[%clk 0:11:14.5]} 8... e6 {[%clk 0:11:22.8]} 9. O-O {[%clk 0:10:20.5]} 9...
Be7 {[%clk 0:11:20.8]} 10. Be3 {[%clk 0:09:37.6]} 10... a6 {[%clk 0:11:20.3]}
11. Nd2 {[%clk 0:09:28.3]} 11... b5 {[%clk 0:11:21.7]} 12. Qc2 {[%clk
0:09:24.1]} 12... h5 {[%clk 0:10:58.6]} 13. Nh3 {[%clk 0:09:09.7]} 13... Ng4
{[%clk 0:10:49.2]} 14. Nf3 {[%clk 0:08:19.6]} 14... Nxe3 {[%clk 0:10:46.8]} 15.
fxe3 {[%clk 0:08:20.4]} 15... O-O {[%clk 0:10:46.7]} 16. Qe2 {[%clk 0:08:11.3]}
16... Nf6 {[%clk 0:10:22.5]} 17. Nhg5 {[%clk 0:08:12.1]} 17... Rad8 {[%clk
0:09:54.9]} 18. Rad1 {[%clk 0:08:08.9]} 18... Kg7 {[%clk 0:09:39.4]} 19. g3
{[%clk 0:07:52.5]} 19... Qb6 {[%clk 0:09:16.5]} 20. d4 {[%clk 0:07:33.3]} 20...
c4 {[%clk 0:09:12.8]} 21. e5 {[%clk 0:06:42.2]} 21... dxe5 {[%clk 0:09:02.2]}
22. Nxe5 {[%clk 0:06:42.3]} 22... Ng4 {[%clk 0:08:22.7]} 23. Nxg4 {[%clk
0:06:23.2]} 23... Bxg5 {[%clk 0:08:14.1]} 24. Ne5 {[%clk 0:06:21.7]} 24... Bf6
{[%clk 0:08:09.5]} 25. h4 {[%clk 0:06:20.3]} 25... Bxe5 {[%clk 0:08:11]} 26.
dxe5 {[%clk 0:06:18.1]} 26... Qc5 {[%clk 0:08:03.5]} 27. Rf4 {[%clk 0:06:06.6]}
27... Qxe5 {[%clk 0:08:04.6]} 28. Rxd8 {[%clk 0:05:57.2]} 28... Rxd8 {[%clk
0:08:03.4]} 29. Qf2 {[%clk 0:05:58.2]} 29... f5 {[%clk 0:07:54.2]} 30. e4 {[%clk
0:05:46.1]} 30... Rd3 {[%clk 0:07:50.4]} 31. exf5 {[%clk 0:05:35.9]} 31... exf5
{[%clk 0:07:48.3]} 32. Qa7+ {[%clk 0:05:32.4]} 32... Kh6 {[%clk 0:07:35.7]} 33.
Qf7 {[%clk 0:05:15.7]} 33... Qe1+ {[%clk 0:07:32.3]} 34. Rf1 {[%clk 0:05:10.5]}
34... Qxg3+ {[%clk 0:07:32.4]} 35. Kh1 {[%clk 0:05:10.2]} 35... Qh3+ {[%clk
0:07:31.5]} 36. Kg1 {[%clk 0:05:09.4]} 36... Qg3+ {[%clk 0:07:08.6]} 37. Kh1
{[%clk 0:05:09.5]} 37... Qxh4+ {[%clk 0:07:09.8]} 38. Kg1 {[%clk 0:05:04.1]}
38... Qg4+ {[%clk 0:07:00.8]} 39. Kf2 {[%clk 0:05:04]} 39... Qg3+ {[%clk
0:06:14.9]} 40. Ke2 {[%clk 0:05:00.5]} 40... Qe3# {[%clk 0:06:16.2]} 0-1

[Event "Sabato rapido!"]
[Site "Chess.com"]
[Date "2020.05.02"]
[Round "1"]
[White "pedrak"]
[Black "Piccolorso"]
[Result "1-0"]
[WhiteElo "1622"]
[BlackElo "1228"]
[TimeControl "720+3"]
[EndTime "6:17:57 PDT"]
[Termination "pedrak ha vinto per abbandono"]

1. Nf3 {[%clk 0:12:02]} 1... Nf6 {[%clk 0:12:00.4]} 2. g3 {[%clk 0:12:02.3]}
2... d5 {[%clk 0:11:59.4]} 3. Bg2 {[%clk 0:12:03.8]} 3... c6 {[%clk 0:11:52.2]}
4. O-O {[%clk 0:12:03.9]} 4... Bf5 {[%clk 0:11:52.8]} 5. d3 {[%clk 0:12:04.9]}
5... h6 {[%clk 0:11:52.6]} 6. Re1 {[%clk 0:12:04.1]} 6... e6 {[%clk 0:11:34]} 7.
Nbd2 {[%clk 0:12:05]} 7... Bc5 {[%clk 0:11:10.2]} 8. h3 {[%clk 0:11:44.3]} 8...
Qb6 {[%clk 0:10:46.3]} 9. e3 {[%clk 0:11:36.9]} 9... Nbd7 {[%clk 0:10:47]} 10.
a3 {[%clk 0:11:35.4]} 10... O-O {[%clk 0:10:31.1]} 11. b4 {[%clk 0:11:35.9]}
11... Bd6 {[%clk 0:10:05.3]} 12. Bb2 {[%clk 0:11:36.8]} 12... e5 {[%clk
0:09:16.6]} 13. e4 {[%clk 0:11:36.3]} 13... Bh7 {[%clk 0:08:56.1]} 14. exd5
{[%clk 0:11:33.5]} 14... Nxd5 {[%clk 0:08:27.6]} 15. Nxe5 {[%clk 0:11:30.5]}
15... Nxe5 {[%clk 0:08:17.1]} 16. Bxe5 {[%clk 0:11:31]} 16... Qc7 {[%clk
0:07:48.8]} 17. Bxd6 {[%clk 0:11:23.2]} 17... Qxd6 {[%clk 0:07:49.8]} 18. Nc4
{[%clk 0:11:24.4]} 18... Qc7 {[%clk 0:06:56.1]} 19. Ne3 {[%clk 0:11:07.6]} 19...
Nxe3 {[%clk 0:06:34.4]} 20. Rxe3 {[%clk 0:11:03.6]} 20... Rae8 {[%clk 0:06:31]}
21. Qd2 {[%clk 0:11:04.2]} 21... Re7 {[%clk 0:06:12.1]} 22. Rae1 {[%clk
0:11:03.6]} 22... Rfe8 {[%clk 0:06:12.3]} 23. c4 {[%clk 0:10:47.1]} 23... Qd7
{[%clk 0:06:03.8]} 24. d4 {[%clk 0:10:46.2]} 24... Bf5 {[%clk 0:05:45]} 25. Kh2
{[%clk 0:10:28.7]} 25... Rxe3 {[%clk 0:05:35.4]} 26. Rxe3 {[%clk 0:10:27.7]}
26... Rxe3 {[%clk 0:05:36.5]} 27. Qxe3 {[%clk 0:10:27.2]} 27... Be6 {[%clk
0:05:28.7]} 28. Bf1 {[%clk 0:10:11.3]} 28... a6 {[%clk 0:05:23.5]} 29. f4 {[%clk
0:10:07.3]} 29... f5 {[%clk 0:05:12.9]} 30. Be2 {[%clk 0:09:55]} 30... Qf7
{[%clk 0:05:12]} 31. Qc3 {[%clk 0:09:47.7]} 31... g6 {[%clk 0:04:44.9]} 32. a4
{[%clk 0:09:44]} 32... b5 {[%clk 0:04:12.1]} 33. axb5 {[%clk 0:09:43.3]} 33...
axb5 {[%clk 0:04:06.1]} 34. cxb5 {[%clk 0:09:44.1]} 34... cxb5 {[%clk
0:04:07.3]} 35. Bxb5 {[%clk 0:09:44.2]} 35... g5 {[%clk 0:03:47.1]} 36. Bc6
{[%clk 0:09:34.1]} 36... gxf4 {[%clk 0:03:40.2]} 37. gxf4 {[%clk 0:09:35.4]}
37... h5 {[%clk 0:03:20.6]} 38. b5 {[%clk 0:09:28.8]} 38... Bd5 {[%clk
0:03:17.9]} 39. b6 {[%clk 0:07:56.4]} 39... Qg7 {[%clk 0:03:00]} 1-0

[Event "Sabato rapido!"]
[Site "Chess.com"]
[Date "2020.05.02"]
[Round "1"]
[White "laremaro"]
[Black "bellapero"]
[Result "1-0"]
[WhiteElo "1751"]
[BlackElo "1343"]
[TimeControl "720+3"]
[EndTime "6:23:21 PDT"]
[Termination "laremaro ha vinto per tempo"]

1. e4 {[%clk 0:12:00.6]} 1... c5 {[%clk 0:12:01]} 2. d4 {[%clk 0:12:01.2]} 2...
cxd4 {[%clk 0:11:49.3]} 3. c3 {[%clk 0:12:01.5]} 3... dxc3 {[%clk 0:11:08.6]} 4.
Nxc3 {[%clk 0:12:01.2]} 4... Nc6 {[%clk 0:10:55.6]} 5. Bc4 {[%clk 0:12:03.5]}
5... e6 {[%clk 0:10:56.1]} 6. Nf3 {[%clk 0:12:04.3]} 6... Nf6 {[%clk 0:10:39.7]}
7. O-O {[%clk 0:12:02.5]} 7... g6 {[%clk 0:10:31.7]} 8. Qe2 {[%clk 0:11:56.4]}
8... Bg7 {[%clk 0:10:25]} 9. Rd1 {[%clk 0:11:51.9]} 9... O-O {[%clk 0:10:18.2]}
10. Bg5 {[%clk 0:11:36]} 10... h6 {[%clk 0:09:51.8]} 11. Bh4 {[%clk 0:11:34.6]}
11... Qb6 {[%clk 0:08:52]} 12. a3 {[%clk 0:11:21.7]} 12... Re8 {[%clk
0:08:21.6]} 13. Bg3 {[%clk 0:11:18.2]} 13... Nh5 {[%clk 0:07:54.6]} 14. Bd6
{[%clk 0:11:08]} 14... Nd4 {[%clk 0:04:57.3]} 15. Nxd4 {[%clk 0:10:44.4]} 15...
Qxd6 {[%clk 0:04:39.8]} 16. Nf5 {[%clk 0:10:00.4]} 16... Qe5 {[%clk 0:04:26.1]}
17. Nxg7 {[%clk 0:09:52.7]} 17... Kxg7 {[%clk 0:04:20.7]} 18. g3 {[%clk
0:09:49.5]} 18... Nf6 {[%clk 0:03:57.3]} 19. Rac1 {[%clk 0:09:34.2]} 19... b6
{[%clk 0:03:41.6]} 20. b4 {[%clk 0:08:36.1]} 20... g5 {[%clk 0:03:08]} 21. Qe3
{[%clk 0:08:23.4]} 21... Ng4 {[%clk 0:02:36.5]} 22. Qd4 {[%clk 0:07:52]} 22...
Qxd4 {[%clk 0:02:28.2]} 23. Rxd4 {[%clk 0:07:51.8]} 23... Ne5 {[%clk 0:02:07.4]}
24. Be2 {[%clk 0:07:48.1]} 24... Bb7 {[%clk 0:01:48.4]} 25. Nb5 {[%clk
0:07:33.1]} 25... Ba6 {[%clk 0:01:33.8]} 26. Kf1 {[%clk 0:06:53.2]} 26... Rac8
{[%clk 0:01:04.6]} 27. Rcd1 {[%clk 0:06:39.3]} 27... Rc2 {[%clk 0:00:52.7]} 28.
R1d2 {[%clk 0:06:00.6]} 28... Rec8 {[%clk 0:00:43.3]} 29. Nd6 {[%clk 0:05:49.7]}
29... Rxd2 {[%clk 0:00:24.6]} 30. Rxd2 {[%clk 0:05:47.2]} 30... Bxe2+ {[%clk
0:00:15.4]} 31. Kxe2 {[%clk 0:05:47.9]} 31... Rc1 {[%clk 0:00:13.8]} 32. f4
{[%clk 0:05:42.9]} 32... gxf4 {[%clk 0:00:11.7]} 33. gxf4 {[%clk 0:05:44.8]}
33... Ng6 {[%clk 0:00:10.8]} 34. f5 {[%clk 0:05:16.7]} 34... exf5 {[%clk
0:00:11]} 35. Nxf5+ {[%clk 0:05:15.4]} 35... Kf6 {[%clk 0:00:09.5]} 36. Rxd7
{[%clk 0:05:07.7]} 36... Rc2+ {[%clk 0:00:06.4]} 37. Rd2 {[%clk 0:05:03.7]} 1-0

[Event "Sabato rapido!"]
[Site "Chess.com"]
[Date "2020.05.02"]
[Round "2"]
[White "Ollarov"]
[Black "crippo"]
[Result "1-0"]
[WhiteElo "1980"]
[BlackElo "1495"]
[TimeControl "720+3"]
[EndTime "6:25:10 PDT"]
[Termination "Ollarov ha vinto per abbandono"]

1. e4 {[%clk 0:12:02.9]} 1... e5 {[%clk 0:12:01.7]} 2. Nf3 {[%clk 0:12:04.3]}
2... Nc6 {[%clk 0:12:02.9]} 3. Bb5 {[%clk 0:12:05.4]} 3... d6 {[%clk 0:12:04.9]}
4. d4 {[%clk 0:12:05.4]} 4... Bg4 {[%clk 0:12:05.9]} 5. dxe5 {[%clk 0:12:05]}
5... Bxf3 {[%clk 0:12:04.8]} 6. Qxf3 {[%clk 0:12:05.6]} 6... dxe5 {[%clk
0:12:05.3]} 7. O-O {[%clk 0:12:02.8]} 7... Nf6 {[%clk 0:12:06.3]} 8. Nc3 {[%clk
0:12:03.4]} 8... Bd6 {[%clk 0:12:07.5]} 9. Bg5 {[%clk 0:12:04]} 9... O-O {[%clk
0:12:08]} 10. Nd5 {[%clk 0:12:02.6]} 10... Nd4 {[%clk 0:12:08]} 11. Qd3 {[%clk
0:12:00]} 11... c6 {[%clk 0:12:03.9]} 12. Nxf6+ {[%clk 0:12:00.3]} 12... gxf6
{[%clk 0:12:05.2]} 13. Bh6 {[%clk 0:12:00.9]} 13... cxb5 {[%clk 0:12:02.6]} 14.
Qg3+ {[%clk 0:12:02.7]} 1-0

[Event "Sabato rapido!"]
[Site "Chess.com"]
[Date "2020.05.02"]
[Round "2"]
[White "SanSecondoPR"]
[Black "pedrak"]
[Result "0-1"]
[WhiteElo "1290"]
[BlackElo "1628"]
[TimeControl "720+3"]
[EndTime "6:29:11 PDT"]
[Termination "pedrak ha vinto per abbandono"]

1. e4 {[%clk 0:12:02.9]} 1... d6 {[%clk 0:11:59.3]} 2. d4 {[%clk 0:12:00.9]}
2... Nf6 {[%clk 0:11:59.9]} 3. Nc3 {[%clk 0:11:59.3]} 3... g6 {[%clk 0:12:00.2]}
4. Bg5 {[%clk 0:11:56.9]} 4... Bg7 {[%clk 0:12:00.8]} 5. Qd2 {[%clk 0:11:54.9]}
5... h6 {[%clk 0:12:01.9]} 6. Bh4 {[%clk 0:11:53.9]} 6... O-O {[%clk 0:12:00.3]}
7. O-O-O {[%clk 0:11:49.2]} 7... c6 {[%clk 0:11:58.2]} 8. Kb1 {[%clk 0:11:49]}
8... b5 {[%clk 0:11:51.3]} 9. f3 {[%clk 0:11:40.5]} 9... a5 {[%clk 0:11:46.4]}
10. g4 {[%clk 0:11:30.9]} 10... Nfd7 {[%clk 0:11:43.5]} 11. Nge2 {[%clk
0:10:59.7]} 11... b4 {[%clk 0:11:42.7]} 12. Na4 {[%clk 0:10:56]} 12... Nb6
{[%clk 0:11:40]} 13. b3 {[%clk 0:10:40.3]} 13... Nxa4 {[%clk 0:11:40.2]} 14.
bxa4 {[%clk 0:10:41.5]} 14... Qc7 {[%clk 0:11:37.7]} 15. Nc1 {[%clk 0:10:34.4]}
15... Re8 {[%clk 0:11:18.4]} 16. Nb3 {[%clk 0:10:33.6]} 16... Nd7 {[%clk
0:11:17.7]} 17. Bg3 {[%clk 0:10:12.9]} 17... Qb6 {[%clk 0:10:57.3]} 18. h4
{[%clk 0:10:05.4]} 18... Bb7 {[%clk 0:10:43]} 0-1

[Event "Sabato rapido!"]
[Site "Chess.com"]
[Date "2020.05.02"]
[Round "2"]
[White "donaldnecesito"]
[Black "bellapero"]
[Result "1-0"]
[WhiteElo "1606"]
[BlackElo "1326"]
[TimeControl "720+3"]
[EndTime "6:31:36 PDT"]
[Termination "donaldnecesito ha vinto per abbandono"]

1. e4 {[%clk 0:12:02.9]} 1... c5 {[%clk 0:12:00.4]} 2. Nf3 {[%clk 0:12:04.7]}
2... Nc6 {[%clk 0:11:58.4]} 3. d4 {[%clk 0:12:07.2]} 3... cxd4 {[%clk 0:11:59]}
4. Nxd4 {[%clk 0:12:09.8]} 4... Nf6 {[%clk 0:11:35.9]} 5. Nc3 {[%clk 0:12:06.2]}
5... g6 {[%clk 0:11:29.5]} 6. Be3 {[%clk 0:12:04]} 6... Bg7 {[%clk 0:11:28.5]}
7. Be2 {[%clk 0:12:05.5]} 7... O-O {[%clk 0:11:24.7]} 8. Qd2 {[%clk 0:12:05.2]}
8... d5 {[%clk 0:10:49.8]} 9. exd5 {[%clk 0:11:43.5]} 9... Nxd5 {[%clk
0:10:49.6]} 10. Nxc6 {[%clk 0:11:33.2]} 10... Bxc3 {[%clk 0:09:01]} 11. bxc3
{[%clk 0:11:19.1]} 11... bxc6 {[%clk 0:08:57.1]} 12. Bh6 {[%clk 0:11:13]} 12...
Re8 {[%clk 0:08:44.6]} 13. Rd1 {[%clk 0:11:08.2]} 13... Qa5 {[%clk 0:08:38.5]}
14. c4 {[%clk 0:10:43.2]} 14... Nc3 {[%clk 0:08:23]} 15. O-O {[%clk 0:10:26.6]}
15... Nxd1 {[%clk 0:07:45.7]} 16. Qxa5 {[%clk 0:10:24.7]} 1-0

[Event "Sabato rapido!"]
[Site "Chess.com"]
[Date "2020.05.02"]
[Round "2"]
[White "fausto2p"]
[Black "fisherpez"]
[Result "0-1"]
[WhiteElo "1002"]
[BlackElo "1609"]
[TimeControl "720+3"]
[EndTime "6:35:21 PDT"]
[Termination "fisherpez ha vinto per scaccomatto"]

1. d4 {[%clk 0:12:02.9]} 1... e6 {[%clk 0:12:00.7]} 2. Nf3 {[%clk 0:12:03.3]}
2... b6 {[%clk 0:12:00.7]} 3. c4 {[%clk 0:11:01]} 3... Bb4+ {[%clk 0:11:59.9]}
4. Bd2 {[%clk 0:10:51.5]} 4... Qe7 {[%clk 0:12:01.5]} 5. a3 {[%clk 0:10:50.4]}
5... Bxd2+ {[%clk 0:12:00.9]} 6. Nbxd2 {[%clk 0:10:38.4]} 6... Bb7 {[%clk
0:12:03.8]} 7. e4 {[%clk 0:10:36.9]} 7... Nf6 {[%clk 0:11:51.4]} 8. Bd3 {[%clk
0:10:35.7]} 8... h6 {[%clk 0:11:52]} 9. O-O {[%clk 0:10:35.1]} 9... O-O {[%clk
0:11:53.3]} 10. Qc2 {[%clk 0:10:24.6]} 10... d6 {[%clk 0:11:51.9]} 11. b4 {[%clk
0:10:05.1]} 11... Nbd7 {[%clk 0:11:28.4]} 12. Rfe1 {[%clk 0:09:54.6]} 12... e5
{[%clk 0:11:10.4]} 13. dxe5 {[%clk 0:09:28.9]} 13... Nxe5 {[%clk 0:11:10.8]} 14.
Nxe5 {[%clk 0:09:25.4]} 14... Qxe5 {[%clk 0:11:04.3]} 15. Nf3 {[%clk 0:09:23.9]}
15... Qh5 {[%clk 0:10:26.9]} 16. Be2 {[%clk 0:08:57.1]} 16... Bxe4 {[%clk
0:10:25.2]} 17. Qd1 {[%clk 0:08:36.2]} 17... Qg6 {[%clk 0:08:20]} 18. Rc1 {[%clk
0:06:53]} 18... Rae8 {[%clk 0:08:12.3]} 19. Nd2 {[%clk 0:06:09.9]} 19... Qxg2#
{[%clk 0:08:11.2]} 0-1